bitfinex/quotes_BTCUSD_20250619
["timestamp","ask_amount","ask_price","bid_price","bid_amount"]
[1750309680866,0.64779873,105270.0,105260.0,0.04014]
[1750309681099,0.1995058,105260.0,105250.0,0.48632]
[1750309681316,0.1995058,105260.0,105250.0,0.04014]
[1750309681317,0.22886872,105260.0,105250.0,0.04014]
[1750309681535,0.22887255,105260.0,105250.0,0.19482]
[1750309682415,0.25742155,105260.0,105250.0,0.19582]
[1750309682860,0.59075757,105260.0,105250.0,0.19782]
[1750309683073,0.59742158,105260.0,105250.0,0.19682]
[1750309683515,0.59742158,105260.0,105250.0,0.04214]
[1750309683790,0.60692159,105260.0,105250.0,0.39470742]
[1750309684016,0.6205249,105260.0,105250.0,0.40420815]
[1750309684247,0.6205249,105260.0,105250.0,0.39470742]
[1750309684470,0.62052305,105260.0,105250.0,0.39470742]
[1750309685145,0.62052307,105260.0,105250.0,0.39470742]
[1750309685996,0.62052307,105260.0,105250.0,0.40420815]
[1750309686219,0.42385501,105260.0,105250.0,0.4137087]
[1750309687119,0.4333552,105260.0,105250.0,0.7052087]
[1750309687324,0.44285548,105260.0,105250.0,0.7052087]
[1750309687540,0.44285548,105260.0,105250.0,0.69570815]
[1750309687750,0.62336135,105260.0,105250.0,0.68620742]
[1750309687965,0.63002596,105260.0,105250.0,0.68620742]
[1750309688166,0.62052586,105260.0,105250.0,0.68620742]
[1750309691197,0.63945276,105260.0,105250.0,0.6767066]
[1750309691651,0.63945276,105260.0,105250.0,0.70389413]
[1750309691869,0.63945276,105260.0,105250.0,0.71339504]
[1750309692983,0.63945468,105260.0,105250.0,0.71339676]
[1750309693207,0.63945468,105260.0,105250.0,0.73239831]
[1750309693423,0.63945468,105260.0,105250.0,0.71339676]
[1750309693889,0.63945468,105260.0,105250.0,0.72289758]
[1750309694185,0.63945468,105260.0,105250.0,0.73239831]
[1750309694595,0.61102759,105260.0,105250.0,0.73239831]
[1750309695666,0.61102759,105260.0,105250.0,0.72289758]
[1750309695875,0.61102759,105260.0,105250.0,0.72290066]
[1750309696629,0.63945468,105260.0,105250.0,0.72290066]
[1750309696832,0.61102759,105260.0,105250.0,0.72290066]
[1750309697060,0.61102759,105260.0,105250.0,0.73240139]
[1750309697243,0.61102759,105260.0,105250.0,0.72290066]
[1750309697950,0.61102759,105260.0,105250.0,0.71339984]
[1750309698631,0.61102759,105260.0,105250.0,0.69570851]
[1750309698852,0.61102759,105260.0,105250.0,0.71340524]
[1750309699276,0.61102759,105260.0,105250.0,0.72290606]
[1750309700481,0.61102759,105260.0,105250.0,0.70390433]
[1750309700783,0.61992496,105260.0,105250.0,0.70390433]
[1750309701013,0.61992496,105260.0,105250.0,0.68490224]
[1750309701241,0.61042468,105260.0,105250.0,0.85842451]
[1750309701458,0.59486078,105260.0,105250.0,0.84072778]
[1750309701682,0.60153381,105260.0,105250.0,0.85843329]
[1750309702429,0.60153381,105260.0,105250.0,0.84072778]
[1750309702643,0.6299609,105260.0,105250.0,0.64940727]
[1750309702841,0.60153381,105260.0,105250.0,0.65890845]
[1750309703098,0.60153381,105260.0,105250.0,0.8489322]
[1750309703318,0.60153381,105260.0,105250.0,0.65886845]
[1750309703529,0.60153381,105260.0,105250.0,0.66836954]
[1750309703752,0.6104394,105260.0,105250.0,0.85839329]
[1750309704386,0.61044556,105260.0,105250.0,0.85840964]
[1750309705134,0.61044556,105260.0,105250.0,0.86791064]
[1750309705409,0.61044556,105260.0,105250.0,0.88691237]
[1750309705633,0.61994575,105260.0,105250.0,0.88691237]
[1750309706286,0.61104016,105260.0,105250.0,0.88691237]
[1750309706764,0.61994705,105260.0,105250.0,0.88691237]
[1750309707427,0.61994876,105260.0,105250.0,0.88691237]
[1750309707927,0.61994876,105260.0,105250.0,0.87741155]
[1750309708838,0.43944298,105260.0,105250.0,0.88691237]
[1750309709097,0.42385465,105260.0,105250.0,0.88691957]
[1750309709328,0.43335475,105260.0,105250.0,0.88691957]
[1750309709568,0.42385465,105260.0,105250.0,0.88691912]
[1750309709802,0.43335466,105260.0,105250.0,0.87741848]
[1750309710238,0.43335466,105260.0,105250.0,0.98741831]
[1750309710945,0.4489494,105260.0,105250.0,0.99691895]
[1750309711380,0.4489494,105260.0,105250.0,0.98741831]
[1750309711593,0.4489494,105260.0,105250.0,0.99691895]
[1750309712373,0.4394493,105260.0,105250.0,0.9969185]
[1750309712802,0.42044982,105260.0,105250.0,0.9969185]
[1750309713026,0.42994944,105260.0,105250.0,0.9969185]
[1750309714143,0.43944927,105260.0,105250.0,0.9969185]
[1750309715013,0.44894919,105260.0,105250.0,0.98741795]
[1750309715239,0.43944927,105260.0,105250.0,0.98741795]
[1750309715495,0.44894919,105260.0,105250.0,0.9969185]
[1750309715942,0.44894919,105260.0,105250.0,0.98742454]
[1750309716187,0.42994944,105260.0,105250.0,0.99692509]
[1750309716365,0.4489491,105260.0,105250.0,0.99692509]
[1750309717045,0.44895085,105260.0,105250.0,0.99692654]
[1750309717760,0.45845095,105260.0,105250.0,0.98742599]
[1750309717985,0.44895085,105260.0,105250.0,0.99692654]
[1750309718398,0.4489508,105260.0,105250.0,0.99692654]
[1750309718739,0.44003952,105260.0,105250.0,0.97918916]
[1750309718957,0.44895316,105260.0,105250.0,0.99692663]
[1750309719164,0.45845326,105260.0,105250.0,0.98742608]
[1750309719382,0.44895316,105260.0,105250.0,0.98742608]
[1750309719594,0.43945324,105260.0,105250.0,0.99692663]
[1750309720429,0.43945319,105260.0,105250.0,0.99692663]
[1750309721695,0.43945317,105260.0,105250.0,0.99692613]
[1750309721985,0.41435464,105260.0,105250.0,0.97918916]
[1750309723231,0.40485508,105260.0,105250.0,0.97918916]
[1750309723460,0.04215231,105260.0,105250.0,0.97918916]
[1750309723901,0.01360331,105260.0,105250.0,0.97918916]
[1750309724356,0.36281455,105270.0,105260.0,0.26500546]
[1750309724585,0.36281455,105270.0,105260.0,0.36124722]
[1750309724807,0.02281455,105270.0,105260.0,0.36124722]
[1750309725023,0.43877941,105280.0,105270.0,0.26498471]
[1750309725239,0.45436001,105280.0,105270.0,0.55530647]
[1750309725457,0.42593292,105280.0,105270.0,0.55530647]
[1750309725904,0.43953772,105280.0,105270.0,0.55530647]
[1750309727132,0.43486028,105280.0,105270.0,0.55530647]
[1750309727327,0.44435839,105280.0,105270.0,0.55530647]
[1750309727750,0.42736235,105280.0,105270.0,0.55530647]
[1750309727973,0.43686028,105280.0,105270.0,0.55530647]
[1750309728276,0.42736244,105280.0,105270.0,0.55530647]
[1750309728474,0.42736235,105280.0,105270.0,0.55530647]
[1750309728701,0.42736226,105280.0,105270.0,0.55530647]
[1750309729134,0.44635803,105280.0,105270.0,0.55530647]
[1750309729578,0.43745469,105280.0,105270.0,0.55530647]
[1750309729799,0.4184591,105280.0,105270.0,0.55530647]
[1750309730693,0.42795703,105280.0,105270.0,0.55530647]
[1750309731798,0.43745505,105280.0,105270.0,0.55530647]
[1750309732339,0.4146405,105280.0,105270.0,0.55530647]
[1750309736972,0.4241387,105280.0,105270.0,0.55530647]
[1750309737215,0.43363699,105280.0,105270.0,0.55530647]
[1750309737442,0.43363763,105280.0,105270.0,0.55510656]
[1750309737660,0.42413924,105280.0,105270.0,0.56460531]
[1750309737885,0.43363763,105280.0,105270.0,0.56460531]
[1750309738311,0.43363763,105280.0,105270.0,0.55510656]
[1750309738515,0.43363763,105280.0,105270.0,0.56460531]
[1750309739055,0.43363818,105280.0,105270.0,0.56460531]
[1750309739735,0.4241397,105280.0,105270.0,0.56460531]
[1750309740299,0.3955977,105280.0,105270.0,0.56460531]
[1750309744326,0.37660102,105280.0,105270.0,0.56460531]
[1750309745362,0.38609931,105280.0,105270.0,0.56460531]
[1750309746679,0.3955977,105280.0,105270.0,0.56460531]
[1750309747561,0.41835736,105280.0,105270.0,0.56460531]
[1750309749810,0.40885897,105280.0,105270.0,0.56460531]
[1750309751355,0.41835736,105280.0,105270.0,0.56460531]
[1750309751568,0.42785584,105280.0,105270.0,0.56460531]
[1750309751780,0.61782544,105280.0,105270.0,0.53150656]
[1750309752005,0.42785584,105280.0,105270.0,0.54100531]
[1750309752579,0.42785584,105280.0,105270.0,0.56420531]
[1750309754110,0.43676342,105280.0,105270.0,0.56420531]
[1750309754741,0.617235,105280.0,105270.0,0.55470656]
[1750309755177,0.61723527,105280.0,105270.0,0.56420531]
[1750309755788,0.61723527,105280.0,105270.0,0.3584687]
[1750309755789,0.60773707,105280.0,105270.0,0.3584687]
[1750309756006,0.60773707,105280.0,105270.0,0.3188287]
[1750309756254,0.60773707,105280.0,105270.0,0.50840701]
[1750309756692,0.60773707,105280.0,105270.0,0.53080701]
[1750309756894,0.60773707,105280.0,105270.0,0.54030603]
[1750309757124,0.60492239,105280.0,105270.0,0.53080701]
[1750309757352,0.60492239,105280.0,105270.0,0.09624176]
[1750309757580,0.66105667,105280.0,105270.0,0.28992176]
[1750309758005,0.64546115,105280.0,105270.0,0.19368]
[1750309758924,0.51210359,105280.0,105270.0,0.19368]
[1750309759148,0.19948685,105270.0,105260.0,0.25550563]
[1750309759360,0.22224651,105270.0,105260.0,0.54542739]
[1750309759766,0.22224651,105270.0,105260.0,0.53592756]
[1750309760214,0.23115926,105270.0,105260.0,0.33642176]
[1750309760422,0.23784387,105270.0,105260.0,0.03964]
[1750309760625,0.26064387,105270.0,105260.0,0.19368]
[1750309760838,0.60064426,105270.0,105260.0,0.19368]
[1750309761072,0.62464426,105270.0,105260.0,0.19368]
[1750309761289,0.60064435,105270.0,105260.0,0.19368]
[1750309761531,0.57784435,105270.0,105260.0,0.19368]
[1750309762680,0.60838835,105270.0,105260.0,0.19368]
[1750309762890,0.1995058,105260.0,105250.0,0.88742074]
[1750309763098,0.22226546,105260.0,105250.0,1.1772625]
[1750309763306,0.1995058,105260.0,105250.0,1.1772625]
[1750309763547,0.1995058,105260.0,105250.0,1.18676314]
[1750309764030,0.5395058,105260.0,105250.0,0.89526314]
[1750309764683,0.54900581,105260.0,105250.0,0.89526314]
[1750309764906,0.3685003,105260.0,105250.0,0.90476369]
[1750309765116,0.37800058,105260.0,105250.0,0.89526314]
[1750309766239,0.37800004,105260.0,105250.0,0.90476369]
[1750309767893,0.36849985,105260.0,105250.0,0.90476369]
[1750309768601,0.36849985,105260.0,105250.0,0.67656369]
[1750309769143,0.35899975,105260.0,105250.0,0.67656369]
[1750309769644,0.38176426,105260.0,105250.0,0.67656369]
[1750309769865,0.38176426,105260.0,105250.0,0.96806369]
[1750309770080,0.39126436,105260.0,105250.0,0.96806369]
[1750309770296,0.38176426,105260.0,105250.0,0.96806369]
[1750309772466,0.35899975,105260.0,105250.0,0.96806369]
[1750309772683,0.38176068,105260.0,105250.0,0.96806369]
[1750309772811,0.35899975,105260.0,105250.0,0.96806369]
[1750309773035,0.36849913,105260.0,105250.0,0.96806369]
[1750309773654,0.37799914,105260.0,105250.0,0.67656369]
[1750309775804,0.35899921,105260.0,105250.0,0.67656369]
[1750309776274,0.36849913,105260.0,105250.0,0.67656369]
[1750309776477,0.37799914,105260.0,105250.0,0.67656369]
[1750309776693,0.36849913,105260.0,105250.0,0.67656369]
[1750309776917,0.34949947,105260.0,105250.0,0.67656369]
[1750309777128,0.34,105260.0,105250.0,0.67656369]
[1750309778386,0.34949947,105260.0,105250.0,0.67656369]
[1750309779905,0.34,105260.0,105250.0,0.67656369]
[1750309781106,0.34949956,105260.0,105250.0,0.67656369]
[1750309782547,0.3589993,105260.0,105250.0,0.52252369]
[1750309782758,0.36849922,105260.0,105250.0,0.67656369]
[1750309782974,0.36849913,105260.0,105250.0,0.67656369]
[1750309783722,0.3589993,105260.0,105250.0,0.67656369]
[1750309783956,0.36849913,105260.0,105250.0,0.67656369]
[1750309784417,0.3589993,105260.0,105250.0,0.67656369]
[1750309784631,0.34949956,105260.0,105250.0,0.67656369]
[1750309784848,0.35899921,105260.0,105250.0,0.67656369]
[1750309785068,0.36849895,105260.0,105250.0,0.67656369]
[1750309785354,0.40078557,105260.0,105250.0,0.67656369]
[1750309785592,0.40078548,105260.0,105250.0,0.67656369]
[1750309785806,0.4102854,105260.0,105250.0,0.67656369]
[1750309786024,0.40078548,105260.0,105250.0,0.67656369]
[1750309787741,0.40078548,105260.0,105250.0,0.50352286]
[1750309787954,0.41028558,105260.0,105250.0,0.66706341]
[1750309788174,0.41028621,105260.0,105250.0,0.66706341]
[1750309788901,0.40078602,105260.0,105250.0,0.66706341]
[1750309789114,0.41028621,105260.0,105250.0,0.66706341]
[1750309789796,0.41028621,105260.0,105250.0,0.61952243]
[1750309789945,0.41028621,105260.0,105250.0,0.57198145]
[1750309790167,0.41028621,105260.0,105250.0,0.52444047]
[1750309790729,0.41028684,105260.0,105250.0,0.52444047]
[1750309790928,0.40078656,105260.0,105250.0,0.47689949]
[1750309791130,0.41028684,105260.0,105250.0,0.47689949]
[1750309791538,0.40078656,105260.0,105250.0,0.47689949]
[1750309791942,0.39128637,105260.0,105250.0,0.47689949]
[1750309793163,0.39128637,105260.0,105250.0,0.49859949]
[1750309793950,0.39128637,105260.0,105250.0,0.52159949]
[1750309794463,0.59079226,105260.0,105250.0,0.51209894]
[1750309794669,0.59079226,105260.0,105250.0,0.52159967]
[1750309794889,0.59079226,105260.0,105250.0,0.53110031]
[1750309795091,0.40078656,105260.0,105250.0,0.53110031]
[1750309795312,0.40078656,105260.0,105250.0,0.54060086]
[1750309795782,0.58129252,105260.0,105250.0,0.41035307]
[1750309795996,0.58129252,105260.0,105250.0,0.4293548]
[1750309796205,0.57179269,105260.0,105250.0,0.41985407]
[1750309796421,0.57179269,105260.0,105250.0,0.19002375]
[1750309796652,0.59083959,105260.0,105250.0,0.38285602]
[1750309797122,0.5813394,105260.0,105250.0,0.38285602]
[1750309797335,0.5813394,105260.0,105250.0,0.36725602]
[1750309797759,0.5813394,105260.0,105250.0,0.20310118]
[1750309797974,0.5813394,105260.0,105250.0,0.15555613]
[1750309798157,0.5813394,105260.0,105250.0,0.16454613]
[1750309798425,0.5813394,105260.0,105250.0,0.09082108]
[1750309798662,0.5813394,105260.0,105250.0,0.08761623]
[1750309798887,0.5813394,105260.0,105250.0,0.06975226]
[1750309799345,0.54902602,105250.0,105240.0,0.18836591]
[1750309799573,0.57181272,105250.0,105240.0,0.46866577]
[1750309799791,0.61571272,105250.0,105240.0,0.28980176]
[1750309800016,0.5490457,105240.0,105230.0,0.42779521]
[1750309800235,0.6167324,105240.0,105230.0,0.38101426]
[1750309800667,0.6117324,105240.0,105230.0,0.38101426]
[1750309800884,0.6402844,105240.0,105230.0,0.38101426]
[1750309801664,0.6262805,105240.0,105220.0,0.0001]
[1750309801915,0.58266267,105230.0,105220.0,0.1937]
[1750309802176,0.56234937,105230.0,105220.0,0.1937]
[1750309802393,0.56234937,105230.0,105220.0,0.20320389]
[1750309802617,0.54906539,105230.0,105220.0,0.04916389]
[1750309802837,0.54906539,105230.0,105220.0,0.20320389]
[1750309803067,0.54906539,105230.0,105220.0,0.19968182]
[1750309803273,0.54906539,105230.0,105220.0,0.40278562]
[1750309803704,0.54906539,105230.0,105220.0,0.25824933]
[1750309803920,0.54906539,105230.0,105220.0,0.4300043]
[1750309804125,0.54906539,105230.0,105220.0,0.43950792]
[1750309804814,0.57829759,105230.0,105220.0,0.43950792]
[1750309805452,0.57829759,105230.0,105220.0,0.43129648]
[1750309805668,0.57829759,105230.0,105220.0,0.44899048]
[1750309806101,0.57829759,105230.0,105220.0,0.27594333]
[1750309806313,0.57829759,105230.0,105220.0,0.43948695]
[1750309807163,0.56879487,105230.0,105220.0,0.42998333]
[1750309807374,0.59179487,105230.0,105220.0,0.42998333]
[1750309807802,0.56879487,105230.0,105220.0,0.42998333]
[1750309808241,0.56879487,105230.0,105220.0,0.28544695]
[1750309808457,0.56879487,105230.0,105220.0,0.43948695]
[1750309808886,0.56879487,105230.0,105220.0,0.27594333]
[1750309809075,0.22879487,105230.0,105220.0,0.42998333]
[1750309809325,0.21929206,105230.0,105220.0,0.211394]
[1750309809551,0.26399206,105230.0,105220.0,0.41097582]
[1750309809785,0.26399206,105230.0,105220.0,0.42047962]
[1750309810222,0.24784806,105230.0,105220.0,0.42996999]
[1750309810951,0.58784806,105230.0,105220.0,0.42996999]
[1750309811378,0.58784806,105230.0,105220.0,0.42046628]
[1750309812004,0.63374806,105230.0,105220.0,0.22088455]
[1750309812666,0.63374806,105230.0,105220.0,0.21138066]
[1750309813104,0.63374806,105230.0,105220.0,0.22088455]
[1750309813770,0.65275377,105230.0,105220.0,0.41096248]
[1750309813988,0.65275377,105230.0,105220.0,0.42046619]
[1750309814204,0.65275377,105230.0,105220.0,0.41096248]
[1750309814427,0.65275377,105230.0,105220.0,0.42996999]
[1750309814645,0.65275377,105230.0,105220.0,0.42996004]
[1750309814874,0.60685377,105230.0,105220.0,0.42996004]
[1750309815104,0.60685377,105230.0,105220.0,0.42045606]
[1750309815317,0.60685377,105230.0,105220.0,0.41095244]
[1750309815772,0.59735105,105230.0,105220.0,0.40144864]
[1750309816000,0.59735105,105230.0,105220.0,0.4204567]
[1750309816226,0.59735105,105230.0,105220.0,0.4109529]
[1750309816673,0.59735105,105230.0,105220.0,0.4204567]
[1750309817356,0.59735105,105230.0,105220.0,0.42996041]
[1750309817851,0.64215105,105230.0,105220.0,0.21137108]
[1750309818068,0.63264806,105230.0,105220.0,0.21137108]
[1750309819657,0.63264806,105230.0,105220.0,0.17665535]
[1750309819891,0.53958164,105220.0,105210.0,0.0001]
[1750309820145,0.55860892,105210.0,105200.0,0.33094181]
[1750309820373,0.55860892,105210.0,105200.0,0.63028882]
[1750309820594,0.58716692,105210.0,105200.0,0.63979398]
[1750309821517,0.58716692,105210.0,105200.0,0.21816503]
[1750309821742,0.56815869,105210.0,105200.0,0.03966]
[1750309821974,0.61175869,105210.0,105200.0,0.1977]
[1750309823119,0.61175869,105210.0,105200.0,0.04366]
[1750309823758,0.61175869,105210.0,105200.0,0.03966]
[1750309825056,0.61375869,105210.0,105200.0,0.03966]
[1750309825277,0.6849006,105210.0,105200.0,0.03966]
[1750309825489,0.61375869,105210.0,105200.0,0.03966]
[1750309826355,0.63650343,105210.0,105200.0,0.03966]
[1750309828864,0.59290343,105210.0,105200.0,0.03966]
[1750309831898,0.59290343,105210.0,105200.0,0.05737321]
[1750309833278,0.59290343,105210.0,105200.0,0.0573707]
[1750309836127,0.59290343,105210.0,105200.0,0.0668764]
[1750309836382,0.59290343,105210.0,105200.0,0.0573707]
[1750309838429,0.42181594,105210.0,105200.0,0.33630648]
[1750309838651,0.44082462,105210.0,105200.0,0.33630648]
[1750309839109,0.63092061,105210.0,105200.0,0.33630657]
[1750309839331,0.63092142,105210.0,105200.0,0.33630657]
[1750309840443,0.62141717,105210.0,105200.0,0.33630657]
[1750309841381,0.62141717,105210.0,105200.0,0.32680141]
[1750309841629,0.62141717,105210.0,105200.0,0.33630666]
[1750309842559,0.62141717,105210.0,105200.0,0.34581182]
[1750309843747,0.62141717,105210.0,105200.0,0.32680141]
[1750309843981,0.61191283,105210.0,105200.0,0.32680141]
[1750309844723,0.39330274,105210.0,105200.0,0.43254824]
[1750309845166,0.370558,105210.0,105200.0,0.43254824]
[1750309846292,0.368558,105210.0,105200.0,0.43254824]
[1750309847857,0.368558,105210.0,105200.0,0.43257425]
[1750309853503,0.368558,105210.0,105200.0,0.43255799]
[1750309859765,0.37806198,105210.0,105200.0,0.43255799]
[1750309860047,0.368558,105210.0,105200.0,0.43255799]
[1750309861676,0.37806198,105210.0,105200.0,0.43255799]
[1750309862115,0.368558,105210.0,105200.0,0.43255799]
[1750309862493,0.368558,105210.0,105200.0,0.39299799]
[1750309862713,0.368558,105210.0,105200.0,0.58655799]
[1750309864809,0.368558,105210.0,105200.0,0.58655238]
[1750309865543,0.368558,105210.0,105200.0,0.56883754]
[1750309865769,0.368558,105210.0,105200.0,0.58655669]
[1750309867647,0.368558,105210.0,105200.0,0.58655671]
[1750309867846,0.368558,105210.0,105200.0,0.5865567]
[1750309872725,0.368558,105210.0,105200.0,0.58657103]
[1750309873142,0.368558,105210.0,105200.0,0.56883754]
[1750309876210,0.34,105210.0,105200.0,0.58337839]
[1750309878187,0.34,105210.0,105200.0,0.58537839]
[1750309879403,0.34,105210.0,105200.0,0.87787839]
[1750309883206,0.14589382,105230.0,105220.0,0.21858852]
[1750309883346,0.14589382,105230.0,105220.0,0.50835028]
[1750309883570,0.14589373,105230.0,105220.0,0.50835028]
[1750309883943,0.15539654,105230.0,105220.0,0.50835028]
[1750309884619,0.15739654,105230.0,105220.0,0.50835028]
[1750309884821,0.14789373,105230.0,105220.0,0.50835028]
[1750309885024,0.14989373,105230.0,105220.0,0.50835028]
[1750309885238,0.49939654,105230.0,105220.0,0.50835028]
[1750309885430,0.48989373,105230.0,105220.0,0.50835028]
[1750309885834,0.49939654,105230.0,105220.0,0.50835028]
[1750309888955,0.67045195,105230.0,105220.0,0.33534349]
[1750309889183,0.34,105220.0,105210.0,0.51009264]
[1750309889384,0.39670308,105220.0,105210.0,0.7998544]
[1750309890215,0.40620643,105220.0,105210.0,0.7998544]
[1750309890640,0.41570996,105220.0,105210.0,0.7998544]
[1750309891067,0.41570996,105220.0,105210.0,0.5083544]
[1750309891255,0.41570996,105220.0,105210.0,0.5084042]
[1750309892156,0.39670308,105220.0,105210.0,0.5084042]
[1750309892396,0.34,105220.0,105210.0,0.5084042]
[1750309892574,0.34,105220.0,105210.0,0.5327042]
[1750309893472,0.44774054,105230.0,105220.0,0.20908508]
[1750309893682,0.47053661,105230.0,105220.0,0.20908508]
[1750309894419,0.48958862,105230.0,105220.0,0.21863814]
[1750309894640,0.49358862,105230.0,105220.0,0.21863814]
[1750309896113,0.50309152,105230.0,105220.0,0.21863814]
[1750309897878,0.50309152,105230.0,105220.0,0.25815814]
[1750309898290,0.49358862,105230.0,105220.0,0.25815814]
[1750309899018,0.50309089,105230.0,105220.0,0.25815814]
[1750309899874,0.50309089,105230.0,105220.0,0.3148799]
[1750309899875,0.42458327,105230.0,105220.0,0.3148799]
[1750309900082,0.43408563,105230.0,105220.0,0.5543999]
[1750309900479,0.43408563,105230.0,105220.0,0.5306999]
[1750309900981,0.44358817,105230.0,105220.0,0.5306999]
[1750309901201,0.44358808,105230.0,105220.0,0.5083999]
[1750309901416,0.45309071,105230.0,105220.0,0.5083999]
[1750309901911,0.44358808,105230.0,105220.0,0.5083999]
[1750309902137,0.45309062,105230.0,105220.0,0.5083999]
[1750309903494,0.44358808,105230.0,105220.0,0.5083999]
[1750309903692,0.42458327,105230.0,105220.0,0.5083999]
[1750309904318,0.42458327,105230.0,105220.0,0.5552999]
[1750309909423,0.43408563,105230.0,105220.0,0.5552999]
[1750309910485,0.43408554,105230.0,105220.0,0.5552999]
[1750309910697,0.42458327,105230.0,105220.0,0.5552999]
[1750309913023,0.0617872,105230.0,105220.0,0.5552999]
[1750309913725,0.0597872,105230.0,105220.0,0.5552999]
[1750309913947,0.002,105230.0,105220.0,0.56984075]
[1750309914828,0.002,105230.0,105220.0,0.57084075]
[1750309915060,0.028547,105240.0,105230.0,0.26326775]
[1750309915285,0.028547,105240.0,105230.0,0.35950951]
[1750309915500,0.028547,105240.0,105230.0,0.35955931]
[1750309919825,0.028547,105240.0,105230.0,0.37410016]
[1750309920055,0.36281924,105260.0,105250.0,0.21852621]
[1750309920302,0.36281924,105260.0,105250.0,0.53230797]
[1750309920521,0.39136324,105260.0,105250.0,0.53230797]
[1750309920972,0.39136324,105260.0,105250.0,0.55515777]
[1750309921672,0.40286271,105260.0,105250.0,0.55515777]
[1750309922105,0.40286289,105260.0,105250.0,0.50825777]
[1750309922316,0.41436272,105260.0,105250.0,0.50825777]
[1750309922529,0.39159348,105260.0,105250.0,0.50825777]
[1750309922738,0.40109358,105260.0,105250.0,0.50825777]
[1750309922963,0.46945231,105260.0,105250.0,0.50825777]
[1750309923168,0.4789525,105260.0,105250.0,0.30531722]
[1750309923378,0.659459,105260.0,105250.0,0.48929649]
[1750309923598,0.659459,105260.0,105250.0,0.50829822]
[1750309924233,0.659459,105260.0,105250.0,0.48929649]
[1750309924440,0.6499589,105260.0,105250.0,0.49879758]
[1750309924653,0.64045871,105260.0,105250.0,0.49879758]
[1750309925348,0.64045871,105260.0,105250.0,0.49875758]
[1750309925554,0.64045871,105260.0,105250.0,0.30531758]
[1750309925760,0.64045871,105260.0,105250.0,0.42151773]
[1750309926795,0.64045871,105260.0,105250.0,0.41201682]
[1750309930896,0.64045871,105260.0,105250.0,0.40251582]
[1750309931327,0.64045871,105260.0,105250.0,0.41201682]
[1750309932595,0.63095843,105260.0,105250.0,0.00955098]
[1750309932833,0.63095843,105260.0,105250.0,0.1934898]
[1750309934079,0.63095843,105260.0,105250.0,0.20299098]
[1750309934499,0.63095843,105260.0,105250.0,0.21249207]
[1750309934935,0.63095843,105260.0,105250.0,0.39301473]
[1750309935338,0.63095843,105260.0,105250.0,0.40251582]
[1750309935959,0.64045871,105260.0,105250.0,0.41201682]
[1750309936163,0.64045871,105260.0,105250.0,0.40251582]
[1750309936388,0.64995872,105260.0,105250.0,0.40251582]
[1750309936590,0.64995872,105260.0,105250.0,0.41201673]
[1750309937518,0.64995872,105260.0,105250.0,0.40251582]
[1750309937718,0.64995872,105260.0,105250.0,0.41201682]
[1750309938355,0.64995872,105260.0,105250.0,0.42151764]
[1750309939734,0.64995872,105260.0,105250.0,0.41201682]
[1750309940243,0.64995872,105260.0,105250.0,0.43101846]
[1750309940445,0.64995872,105260.0,105250.0,0.43101855]
[1750309940650,0.64995872,105260.0,105250.0,0.42151773]
[1750309940854,0.65885266,105260.0,105250.0,0.42151773]
[1750309941065,0.65885266,105260.0,105250.0,0.43101855]
[1750309941307,0.65885266,105260.0,105250.0,0.42151773]
[1750309942020,0.6588571,105260.0,105250.0,0.42151773]
[1750309942804,0.66553627,105260.0,105250.0,0.42151773]
[1750309943533,0.66553627,105260.0,105250.0,0.43101855]
[1750309944042,0.66553627,105260.0,105250.0,0.4310181]
[1750309944704,0.66553627,105260.0,105250.0,0.42151737]
[1750309945024,0.66554853,105260.0,105250.0,0.41201655]
[1750309945249,0.65604852,105260.0,105250.0,0.38351355]
[1750309945457,0.64654824,105260.0,105250.0,0.39301464]
[1750309945663,0.67505985,105260.0,105250.0,0.39301464]
[1750309945887,0.59472584,105250.0,105240.0,0.14632219]
[1750309946103,0.36850417,105240.0,105230.0,0.20906449]
[1750309946308,0.38750779,105240.0,105230.0,0.50820915]
[1750309946529,0.41605879,105240.0,105230.0,0.50820915]
[1750309946749,0.41605933,105240.0,105230.0,0.35428969]
[1750309946957,0.41605988,105240.0,105230.0,0.51771232]
[1750309947193,0.39705598,105240.0,105230.0,0.51771232]
[1750309947407,0.40655788,105240.0,105230.0,0.51771232]
[1750309947656,0.40655788,105240.0,105230.0,0.51971232]
[1750309948522,0.40655788,105240.0,105230.0,0.51771232]
[1750309948757,0.40655788,105240.0,105230.0,0.50920996]
[1750309948994,0.41605997,105240.0,105230.0,0.3253125]
[1750309949241,0.60610177,105240.0,105230.0,0.41196838]
[1750309949471,0.59660023,105240.0,105230.0,0.41196838]
[1750309949939,0.59660023,105240.0,105230.0,0.42147092]
[1750309950190,0.59660023,105240.0,105230.0,0.26755092]
[1750309950392,0.59660023,105240.0,105230.0,0.42147092]
[1750309950848,0.5870986,105240.0,105230.0,0.42147092]
[1750309952218,0.60988568,105240.0,105230.0,0.41196838]
[1750309952424,0.60038387,105240.0,105230.0,0.41196838]
[1750309953422,0.57759679,105240.0,105230.0,0.41196838]
[1750309955432,0.5585928,105240.0,105230.0,0.40246575]
[1750309955989,0.58137382,105240.0,105230.0,0.40246575]
[1750309957060,0.58137382,105240.0,105230.0,0.41196856]
[1750309957282,0.58137382,105240.0,105230.0,0.40246575]
[1750309957497,0.58137382,105240.0,105230.0,0.24854575]
[1750309957754,0.58137382,105240.0,105230.0,0.41200856]
[1750309957973,0.58137382,105240.0,105230.0,0.42151119]
[1750309958422,0.58137382,105240.0,105230.0,0.41200856]
[1750309958882,0.58137382,105240.0,105230.0,0.42151128]
[1750309959333,0.59087572,105240.0,105230.0,0.43101382]
[1750309962171,0.59087572,105240.0,105230.0,0.42151128]
[1750309963890,0.59087572,105240.0,105230.0,0.43101382]
[1750309965791,0.59087572,105240.0,105230.0,0.42151128]
[1750309966841,0.59087572,105240.0,105230.0,0.42147128]
[1750309968228,0.42641945,105240.0,105230.0,0.41747128]
[1750309969665,0.41691755,105240.0,105230.0,0.40796856]
[1750309972087,0.41691755,105240.0,105230.0,0.25404856]
[1750309972233,0.41691755,105240.0,105230.0,0.40796856]
[1750309973712,0.41691755,105240.0,105230.0,0.41747128]
[1750309973941,0.41691755,105240.0,105230.0,0.45117391]
[1750309974967,0.42583111,105240.0,105230.0,0.45117391]
[1750309975185,0.42583109,105240.0,105230.0,0.45117391]
[1750309975404,0.42583106,105240.0,105230.0,0.45117391]
[1750309976531,0.42583106,105240.0,105230.0,0.42697391]
[1750309976770,0.42583121,105240.0,105230.0,0.42697391]
[1750309977574,0.42583121,105240.0,105230.0,0.40796856]
[1750309977779,0.42583121,105240.0,105230.0,0.41747128]
[1750309978236,0.43251692,105240.0,105230.0,0.42697391]
[1750309979100,0.44201882,105240.0,105230.0,0.45497346]
[1750309979305,0.42641945,105240.0,105230.0,0.47967301]
[1750309980855,0.43533407,105240.0,105230.0,0.47967301]
[1750309981375,0.4543377,105240.0,105230.0,0.47967301]
[1750309982070,0.4543377,105240.0,105230.0,0.08818]
[1750309982299,0.53956267,105230.0,105220.0,0.1934]
[1750309982531,0.55858816,105220.0,105210.0,0.24868495]
[1750309982742,0.40079487,105220.0,105210.0,0.56683982]